bitfinex/quotes_ETHUSD_20250626
["timestamp","ask_amount","ask_price","bid_price","bid_amount"]
[1750918985750,0.2016,2480.1,2479.7,4.23429026]
[1750918985947,0.2016,2480.1,2479.8,4.03258002]
[1750918987135,0.2016,2480.1,2480.0,4.78695806]
[1750918987334,0.9691,2480.6,2480.0,0.9563]
[1750918987651,0.9691,2480.6,2480.2,4.03185347]
[1750918987818,0.9691,2480.6,2480.2,4.23265347]
[1750918988018,1.09504055,2480.6,2480.3,4.03176587]
[1750918988264,0.2008,2480.7,2480.3,4.03176587]
[1750918988450,0.32673326,2480.7,2480.2,4.23268191]
[1750918989237,0.32673326,2480.7,2480.3,4.03175289]
[1750918989554,0.32673326,2480.7,2480.2,4.23266509]
[1750918990145,0.32673326,2480.7,2480.3,4.03176665]
[1750918990520,0.32673326,2480.7,2480.3,4.23256665]
[1750918991026,0.2008,2480.7,2480.3,4.23256665]
[1750918991227,0.2008,2480.7,2480.4,4.03150645]
[1750918992046,0.2008,2480.7,2480.3,0.2008]
[1750918992760,0.2008,2480.7,2480.3,4.23249031]
[1750918993547,0.2008,2480.7,2480.3,10.82156881]
[1750918993742,0.2008,2480.7,2480.3,6.7898]
[1750918995636,0.8166,2480.6,2479.8,0.7856]
[1750918995836,0.8166,2480.4,2480.0,0.2016]
[1750918998747,0.7646,2480.6,2480.1,4.03196718]
[1750918998948,0.7646,2480.6,2480.2,0.2008]
[1750918999569,0.7646,2480.6,2480.2,4.2326914]
[1750918999737,0.7646,2480.6,2480.3,4.03168055]
[1750919000067,0.2008,2480.7,2480.4,4.03157823]
[1750919003673,1.714,2480.9,2480.6,4.03128275]
[1750919004778,1.714,2480.9,2480.6,0.806]
[1750919005247,1.714,2480.9,2480.7,4.03112024]
[1750919006549,1.0016,2481.0,2480.6,4.83718207]
[1750919006754,1.0016,2481.0,2480.5,0.2008]
[1750919007154,1.0016,2481.0,2480.5,4.23217345]
[1750919007354,0.12591009,2480.9,2480.5,4.23217345]
[1750919008453,1.0016,2481.0,2480.5,0.2008]
[1750919008686,0.7835,2480.8,2480.5,0.2008]
[1750919008979,0.90941011,2480.8,2480.5,0.2008]
[1750919009180,0.7835,2480.8,2480.5,4.23224112]
[1750919010180,0.9794,2481.0,2480.7,4.03111278]
[1750919010375,0.12590766,2480.9,2480.7,4.03111278]
[1750919010576,0.9794,2481.0,2480.6,4.03120866]
[1750919010886,0.125908,2480.9,2480.6,4.03120866]
[1750919011070,0.9794,2481.0,2480.6,4.03120866]
[1750919011264,0.12590598,2480.9,2480.7,4.03111451]
[1750919011585,0.9794,2481.0,2480.6,4.03119716]
[1750919011781,0.9794,2481.0,2480.7,4.03111989]
[1750919012159,0.9794,2481.0,2480.8,4.03090305]
[1750919013302,0.9794,2481.0,2480.7,4.03103845]
[1750919013659,0.2008,2481.0,2480.8,4.03091567]
[1750919013982,0.7666,2481.2,2480.7,4.23186849]
[1750919014190,0.12590166,2481.1,2480.7,4.23186849]
[1750919014392,0.12590166,2481.0,2480.7,4.23186849]
[1750919014681,0.9674,2481.2,2480.7,4.23186849]
[1750919014682,0.7777,2481.1,2480.7,0.2008]
[1750919014986,0.12590209,2481.0,2480.5,4.03136335]
[1750919015282,0.12590643,2480.9,2480.5,0.2008]
[1750919015489,0.8295,2480.9,2480.5,6.7848]
[1750919015795,0.2008,2481.0,2480.7,4.03110485]
[1750919016287,0.1259035,2480.9,2480.7,4.03110485]
[1750919016459,0.2008,2481.0,2480.7,4.03110485]
[1750919016661,0.12590324,2480.9,2480.7,4.03110485]
[1750919016990,0.9789,2481.2,2480.8,4.03095775]
[1750919017190,0.12590194,2481.1,2480.8,4.03095775]
[1750919017488,0.12590194,2481.0,2480.8,4.03095775]
[1750919017688,0.9789,2481.2,2480.8,4.03095775]
[1750919017888,0.1259005,2481.1,2480.8,4.03095775]
[1750919018059,0.1259005,2481.0,2480.8,4.03095775]
[1750919018256,0.9789,2481.2,2480.7,0.2008]
[1750919018460,0.12590185,2481.1,2480.8,4.03095775]
[1750919018784,0.2008,2481.3,2481.0,4.03062849]
[1750919018985,0.751,2481.7,2481.1,11.42897035]
[1750919019168,0.3266878,2481.6,2481.2,0.2008]
[1750919019370,0.1258878,2481.5,2481.2,0.2008]
[1750919019561,0.1258878,2481.4,2481.2,0.2008]
[1750919019761,0.2008,2481.6,2481.2,0.2008]
[1750919019986,0.12588275,2481.5,2481.2,0.2008]
[1750919020188,0.12588275,2481.4,2481.2,0.2008]
[1750919020362,0.2008,2481.6,2481.2,0.2008]
[1750919020559,0.12588268,2481.5,2481.2,0.2008]
[1750919020764,0.2008,2481.6,2481.2,0.2008]
[1750919021264,0.2008,2481.6,2481.3,4.03005868]
[1750919021461,0.8136,2481.4,2480.9,0.8324]
[1750919021663,0.79430688,2481.3,2480.9,0.2008]
[1750919021866,1.0144,2481.4,2480.9,0.2008]
[1750919022087,0.1258949,2481.3,2480.9,0.2008]
[1750919022363,1.0144,2481.4,2480.9,0.2008]
[1750919022556,0.12589488,2481.3,2480.9,0.2008]
[1750919022759,1.0144,2481.4,2480.9,0.2008]
[1750919023092,0.12589492,2481.3,2480.9,0.2008]
[1750919023304,0.12589492,2481.2,2480.9,0.2008]
[1750919023588,1.0144,2481.4,2480.9,0.2008]
[1750919023892,0.12589297,2481.3,2480.9,0.2008]
[1750919024070,1.0144,2481.4,2480.9,0.2008]
[1750919024071,0.12589297,2481.2,2480.9,0.2008]
[1750919024272,0.12589127,2481.3,2480.9,0.2008]
[1750919024472,1.0144,2481.4,2480.9,0.2008]
[1750919024692,0.12589125,2481.3,2480.9,0.2008]
[1750919024865,0.12589125,2481.2,2480.9,0.2008]
[1750919025065,1.0144,2481.4,2480.9,0.2008]
[1750919025266,0.12589372,2481.3,2480.9,0.2008]
[1750919025590,0.12589372,2481.2,2480.9,0.2008]
[1750919025794,0.12589543,2481.3,2480.9,0.2008]
[1750919026092,1.0144,2481.4,2480.9,0.2008]
[1750919026288,0.12589183,2481.3,2480.9,0.2008]
[1750919026492,1.0144,2481.4,2480.9,0.2008]
[1750919026792,0.12589122,2481.3,2480.9,0.2008]
[1750919026993,0.12589122,2481.2,2480.9,0.2008]
[1750919027194,1.0144,2481.4,2480.9,0.2008]
[1750919027502,0.8285,2481.2,2480.9,0.2008]
[1750919037511,7.00359056,2481.0,2480.3,0.7795]
[1750919037824,0.7655,2480.8,2480.2,6.579]
[1750919037969,0.12589668,2480.7,2480.3,4.03177035]
[1750919038167,0.7655,2481.3,2480.4,4.03147539]
[1750919038393,0.8321,2481.1,2480.4,4.03147539]
[1750919038594,0.12590793,2481.0,2480.5,4.03141452]
[1750919038798,0.12590793,2480.9,2480.2,6.579]
[1750919038991,0.12590793,2480.8,2480.3,4.03163411]
[1750919039194,0.8321,2481.1,2480.3,4.03163411]
[1750919039393,0.12591145,2481.0,2480.3,4.03163411]
[1750919039588,0.12591145,2480.9,2480.3,4.03163411]
[1750919039796,0.12591145,2480.8,2480.3,4.03174502]
[1750919039991,0.12591145,2480.7,2480.2,10.61087815]
[1750919040191,0.763,2480.8,2480.2,10.61087815]
[1750919040410,0.12591258,2480.7,2480.3,6.579]
[1750919040605,0.763,2480.8,2480.3,6.579]
[1750919040797,0.12591416,2480.7,2480.3,6.579]
[1750919041104,0.763,2480.8,2480.3,6.579]
[1750919041307,0.12591409,2480.7,2480.3,6.579]
[1750919041712,0.12591409,2480.7,2480.3,10.61076685]
[1750919041881,0.763,2480.8,2480.4,4.03156968]
[1750919042882,0.763,2480.8,2480.3,6.579]
[1750919042883,0.763,2480.8,2480.3,10.61071567]
[1750919043083,0.824,2481.3,2480.6,4.03126833]
[1750919043332,0.824,2481.2,2480.5,0.8311]
[1750919044305,0.824,2481.2,2480.5,4.86252481]
[1750919045384,0.824,2481.2,2480.6,4.03124263]
[1750919045619,0.824,2481.2,2480.5,4.86251568]
[1750919045917,1.86456496,2481.2,2480.5,4.86251568]
[1750919046419,1.86456496,2481.2,2480.6,4.03126978]
[1750919047315,0.824,2481.2,2480.5,4.86253148]
[1750919047490,1.0248,2481.2,2480.7,0.2008]
[1750919049788,0.12590519,2481.1,2480.7,0.2008]
[1750919049989,0.12590519,2481.0,2480.7,0.2008]
[1750919050290,0.12590519,2480.9,2480.7,0.2008]
[1750919050514,1.0248,2481.2,2480.8,4.03095037]
[1750919050727,0.12590262,2481.1,2480.8,10.60888234]
[1750919050891,0.824,2481.2,2480.9,0.2008]
[1750919051094,0.12589272,2481.1,2480.9,0.2008]
[1750919051302,0.824,2481.2,2480.9,0.2008]
[1750919051497,0.12589603,2481.1,2480.9,0.2008]
[1750919051704,0.824,2481.2,2480.9,0.2008]
[1750919051905,0.12589675,2481.1,2480.9,0.2008]
[1750919052100,0.824,2481.2,2480.9,0.2008]
[1750919052308,0.12589514,2481.1,2480.9,0.2008]
[1750919052506,0.824,2481.2,2480.9,0.2008]
[1750919052716,0.12589589,2481.1,2480.9,0.2008]
[1750919053026,0.824,2481.2,2480.9,0.2008]
[1750919053223,0.12589499,2481.1,2480.9,0.2008]
[1750919053409,0.824,2481.2,2480.9,0.2008]
[1750919053609,0.12589426,2481.1,2480.9,0.2008]
[1750919053810,0.824,2481.2,2480.9,0.2008]
[1750919054123,0.12589415,2481.1,2480.9,0.2008]
[1750919054327,0.824,2481.2,2480.9,0.2008]
[1750919054531,0.12589672,2481.1,2480.9,0.2008]
[1750919054698,0.824,2481.2,2480.9,0.2008]
[1750919054899,0.12589685,2481.1,2480.9,0.2008]
[1750919055102,0.824,2481.2,2480.9,0.2008]
[1750919055300,0.12589404,2481.1,2480.9,0.2008]
[1750919055511,0.824,2481.2,2480.9,0.2008]
[1750919055802,0.12589404,2481.1,2480.9,0.2008]
[1750919056002,0.824,2481.2,2480.9,0.2008]
[1750919056201,0.12589445,2481.1,2480.9,0.2008]
[1750919056402,0.824,2481.2,2480.9,0.2008]
[1750919056602,0.12589447,2481.1,2480.9,0.2008]
[1750919056802,0.824,2481.2,2480.9,0.2008]
[1750919057003,0.12589446,2481.1,2480.9,0.2008]
[1750919057213,0.824,2481.2,2480.9,0.2008]
[1750919057415,0.7553,2481.0,2480.4,4.03159854]
[1750919057617,0.7553,2481.0,2480.3,0.8254]
[1750919057618,0.12589416,2480.9,2480.6,6.577]
[1750919057811,0.9561,2481.0,2480.6,6.577]
[1750919058131,0.1259075,2480.9,2480.6,6.577]
[1750919058360,0.9561,2481.0,2480.6,6.577]
[1750919058537,0.12590504,2480.9,2480.6,6.577]
[1750919058713,0.9561,2481.0,2480.6,6.577]
[1750919058913,0.12590599,2480.9,2480.6,6.577]
[1750919059110,0.9561,2481.0,2480.6,6.577]
[1750919059330,0.12590448,2480.9,2480.6,6.577]
[1750919059631,0.9561,2481.0,2480.6,6.577]
[1750919059932,0.12590279,2480.9,2480.6,6.577]
[1750919060232,0.9561,2481.0,2480.6,6.577]
[1750919060733,0.9561,2481.0,2480.5,4.23224105]
[1750919060938,0.9561,2481.0,2480.6,6.576]
[1750919061306,0.12590224,2480.9,2480.6,10.60727139]
[1750919061522,0.9561,2481.0,2480.6,10.60727139]
[1750919061725,0.7553,2481.3,2480.7,0.8254]
[1750919061924,0.12589687,2481.2,2480.8,0.2008]
[1750919062230,0.12589687,2481.1,2480.8,0.2008]
[1750919062418,0.12589536,2481.0,2480.8,0.2008]
[1750919062620,0.9561,2481.3,2480.8,4.23174107]
[1750919062826,0.12589568,2481.2,2480.8,4.23174107]
[1750919063025,0.12589568,2481.1,2480.8,4.23174107]
[1750919063338,0.12589568,2481.0,2480.8,4.23174107]
[1750919063534,0.9561,2481.3,2480.8,4.23174107]
[1750919063728,0.1258951,2481.2,2480.8,4.23174107]
[1750919063903,0.1258951,2481.1,2480.8,4.23174107]
[1750919064104,0.9561,2481.3,2480.8,4.23174107]
[1750919064334,0.12589471,2481.2,2480.8,4.23174107]
[1750919064632,0.12589471,2481.1,2480.8,4.23174107]
[1750919064935,1.705,2481.6,2480.8,4.23174107]
[1750919064936,0.2008,2481.4,2481.0,0.2008]
[1750919065130,0.12588792,2481.3,2481.0,4.23141979]
[1750919065338,0.12588792,2481.2,2481.0,4.23141979]
[1750919065532,0.12588792,2481.1,2481.0,10.80641979]
[1750919065841,0.2008,2481.4,2481.0,10.80641979]
[1750919066025,0.12588663,2481.3,2481.0,10.80641979]
[1750919066222,0.12588663,2481.2,2481.0,10.80641979]
[1750919066416,0.2008,2481.4,2481.0,10.80641979]
[1750919066611,0.12588654,2481.3,2481.0,6.7758]
[1750919066805,0.12588654,2481.2,2481.0,6.7758]
[1750919067005,0.2008,2481.4,2481.0,6.7758]
[1750919067201,0.12588636,2481.3,2481.0,6.7758]
[1750919067406,0.12588636,2481.2,2481.0,6.7758]
[1750919067606,0.2008,2481.4,2481.0,6.7758]
[1750919067817,0.12588638,2481.3,2481.0,6.7758]
[1750919068017,0.12588638,2481.2,2481.0,6.7758]
[1750919068351,0.2008,2481.4,2481.0,6.7758]
[1750919068537,0.12588651,2481.3,2481.0,6.7758]
[1750919068739,0.12588651,2481.2,2481.0,6.7758]
[1750919068939,0.2008,2481.4,2481.0,6.7758]
[1750919069236,0.12588651,2481.3,2481.0,6.7758]
[1750919069445,0.12588651,2481.2,2481.0,6.7758]
[1750919069741,0.2008,2481.4,2481.0,11.6152505]
[1750919069909,0.12588622,2481.3,2481.0,7.5847]
[1750919070101,0.12588622,2481.2,2481.0,11.41445598]
[1750919070329,0.7515,2481.5,2481.2,0.2008]
[1750919070525,0.12588369,2481.4,2481.2,0.2008]
[1750919070843,0.12588369,2481.3,2481.2,0.2008]
[1750919075339,0.2008,2481.6,2481.2,0.2008]
[1750919075528,0.12587729,2481.5,2481.2,0.2008]
[1750919075732,0.12587729,2481.4,2481.2,10.80409059]
[1750919075934,0.2008,2481.6,2481.2,10.80409059]
[1750919076133,0.12587712,2481.5,2481.2,6.7738]
[1750919076309,0.12587712,2481.4,2481.2,10.80401046]
[1750919076637,0.2008,2481.6,2481.2,10.80401046]
[1750919076846,0.1258743,2481.5,2481.2,10.80401046]
[1750919077039,0.1258743,2481.4,2481.2,10.80401046]
[1750919077246,0.2008,2481.6,2481.2,10.80401046]
[1750919077446,0.12587424,2481.5,2481.2,10.80401046]
[1750919077743,0.2008,2481.6,2481.3,0.764]
[1750919077945,0.12587199,2481.5,2481.3,0.764]
[1750919078247,0.2008,2481.6,2481.3,4.79413715]
[1750919078427,0.12587245,2481.5,2481.3,4.79413715]
[1750919078624,0.2008,2481.6,2481.3,4.79413715]
[1750919078926,0.12587136,2481.5,2481.3,4.79413715]
[1750919079125,0.2008,2481.6,2481.3,0.764]
[1750919079326,0.12587126,2481.5,2481.3,0.764]
[1750919079631,0.2008,2481.6,2481.3,0.764]
[1750919079832,0.12587224,2481.5,2481.2,10.80403478]
[1750919080032,0.2008,2481.6,2481.2,10.80403478]
[1750919080223,0.12587298,2481.5,2481.2,10.80403478]
[1750919080547,0.2008,2481.6,2481.2,10.80403478]
[1750919080746,0.12587253,2481.5,2481.2,10.80403478]
[1750919080936,0.2008,2481.6,2481.2,10.80403478]
[1750919081135,0.12587246,2481.5,2481.3,4.03013347]
[1750919081350,0.2008,2481.6,2481.3,4.03013347]
[1750919081518,0.12587218,2481.5,2481.3,4.03013347]
[1750919081843,0.2008,2481.6,2481.3,4.03013347]
[1750919082044,0.12587173,2481.5,2481.3,4.03013347]
[1750919082245,0.775,2481.9,2481.4,4.02990406]
[1750919082446,0.32666757,2481.8,2481.5,10.60176377]
[1750919082643,0.12586757,2481.7,2481.5,10.60176377]
[1750919082848,0.2008,2481.8,2481.5,10.60176377]
[1750919083372,0.2008,2481.8,2481.5,6.572]
[1750919089665,0.12586535,2481.7,2481.5,6.572]
[1750919089841,0.2008,2481.8,2481.5,6.572]
[1750919090037,0.12586544,2481.7,2481.5,6.572]
[1750919090238,0.2008,2481.8,2481.5,6.572]
[1750919090429,0.12586544,2481.7,2481.5,6.572]
[1750919090635,0.2008,2481.8,2481.5,6.572]
[1750919090866,0.12586535,2481.7,2481.5,6.572]
[1750919091162,0.2008,2481.8,2481.5,6.572]
[1750919091370,0.12586534,2481.7,2481.5,6.572]
[1750919091574,0.2008,2481.8,2481.5,6.572]
[1750919091869,0.12586537,2481.7,2481.5,6.572]
[1750919092069,0.2008,2481.8,2481.5,6.572]
[1750919092274,0.12586536,2481.7,2481.5,6.572]
[1750919092463,0.2008,2481.8,2481.5,6.572]
[1750919092661,0.12586536,2481.7,2481.5,6.572]
[1750919092861,0.2008,2481.8,2481.5,6.572]
[1750919093176,0.12586536,2481.7,2481.5,6.572]
[1750919093384,0.2008,2481.8,2481.5,6.572]
[1750919093694,0.12586537,2481.7,2481.6,6.57]
[1750919093976,0.12586537,2481.7,2481.6,6.569]
[1750919094179,0.12586505,2481.7,2481.6,6.569]
[1750919094776,0.12586496,2481.7,2481.6,6.569]
[1750919095349,0.12586496,2481.7,2481.6,11.36375828]
[1750919095547,0.12586496,2481.7,2481.6,11.56455828]
[1750919096576,0.12586496,2482.2,2481.7,4.02934438]
[1750919096776,0.12586496,2482.2,2481.7,4.02949222]
[1750919096942,0.12586496,2482.1,2481.9,4.22986721]
[1750919097141,0.2008,2482.4,2482.0,10.59800486]
[1750919097577,0.12584024,2482.3,2482.0,10.59800486]
[1750919098254,0.12584024,2482.2,2482.0,10.59800486]
[1750919098471,0.12584024,2482.1,2482.0,10.59800486]
[1750919098777,0.12584024,2482.1,2482.0,6.569]
[1750919099381,0.2008,2482.4,2482.0,6.569]
[1750919100352,7.00359056,2482.3,2481.6,0.7646]
[1750919100547,1.15075515,2482.2,2481.7,0.2008]
[1750919100752,1.15075515,2482.2,2481.8,6.568]
[1750919100753,0.12585515,2482.1,2481.8,6.568]
[1750919100952,0.12585515,2482.0,2481.8,6.568]
[1750919101184,1.0249,2482.2,2481.7,0.2008]
[1750919101485,0.12584978,2482.1,2481.8,6.568]
[1750919101679,1.0249,2482.2,2481.8,6.568]
[1750919101880,0.12584989,2482.1,2481.8,6.568]
[1750919102089,1.0249,2482.2,2481.8,6.568]
[1750919102384,0.12585012,2482.1,2481.8,6.568]
[1750919102585,1.0249,2482.2,2481.8,6.568]
[1750919102787,0.7559,2482.0,2481.4,0.7542]
[1750919102964,0.32665081,2481.9,2481.5,6.567]
[1750919103283,0.2008,2481.9,2481.5,6.567]
[1750919104391,0.2008,2481.9,2481.4,4.23076589]
[1750919104589,0.2008,2481.9,2481.5,6.567]
[1750919105683,0.2008,2481.9,2481.4,0.2008]
[1750919105895,0.7867,2481.8,2481.5,6.567]
[1750919113497,0.12586072,2481.7,2481.5,6.567]
[1750919113798,0.7867,2481.8,2481.5,6.567]
[1750919114396,0.2008,2481.9,2481.5,6.567]
[1750919114694,0.12586077,2481.8,2481.5,10.59679446]
[1750919114894,0.2008,2481.9,2481.5,10.59679446]
[1750919115116,0.12586041,2481.8,2481.5,10.59679446]
[1750919115406,0.2008,2481.9,2481.5,10.59679446]
[1750919115703,0.12585982,2481.8,2481.5,10.59679446]
[1750919115899,0.2008,2481.9,2481.5,6.567]
[1750919116106,0.12586018,2481.8,2481.5,6.567]
[1750919116304,0.12586018,2481.7,2481.5,6.567]
[1750919116470,0.2008,2481.9,2481.5,6.567]
[1750919116671,0.12586054,2481.8,2481.5,6.567]
[1750919116900,0.12586054,2481.7,2481.5,6.567]
[1750919117211,0.2008,2481.9,2481.5,6.567]
[1750919117506,0.12586024,2481.8,2481.5,10.59677043]
[1750919117682,0.12586024,2481.7,2481.5,10.59677043]
[1750919117869,0.2008,2481.9,2481.5,10.59677043]
[1750919118069,0.12585981,2481.8,2481.5,10.59677043]
[1750919118300,0.12585967,2481.7,2481.6,4.02965828]
[1750919119003,0.2008,2482.1,2481.8,4.02932756]
[1750919119210,0.12585851,2482.0,2481.8,10.59432756]
[1750919119371,0.12585851,2481.9,2481.8,10.59432756]
[1750919120081,0.2008,2482.1,2481.8,10.59432756]
[1750919121002,0.8299,2482.5,2482.0,4.02900886]
[1750919121205,0.2008,2482.4,2482.0,4.02900886]
[1750919121405,0.8299,2482.5,2482.1,6.564]
[1750919121617,0.8299,2482.5,2482.1,10.79354254]
[1750919122395,0.8299,2482.5,2482.2,4.02863894]
[1750919122904,0.8299,2482.5,2482.1,6.7648]
[1750919124411,0.8299,2482.5,2482.1,10.79362113]
[1750919124709,0.8299,2482.5,2482.1,10.79363031]
[1750919124912,0.2008,2482.6,2482.2,4.02857474]
[1750919126910,0.2008,2482.6,2482.1,10.7935819]
[1750919127513,0.2008,2482.6,2482.1,10.79356489]
[1750919128611,0.2008,2482.6,2482.2,4.02868322]
[1750919129113,0.2008,2482.6,2482.1,6.7648]
[1750919129613,0.2008,2482.6,2482.1,10.79356348]
[1750919129824,0.2008,2482.6,2482.1,6.7648]
[1750919130810,0.2008,2482.6,2482.1,10.79363336]
[1750919131019,0.2008,2482.6,2482.2,4.86055926]
[1750919131525,0.2008,2482.6,2482.2,0.832]
[1750919132618,0.2008,2482.6,2482.2,4.86066475]
[1750919133110,0.2008,2482.6,2482.2,0.832]
[1750919133618,0.2008,2482.6,2482.3,6.561]
[1750919133921,0.2008,2482.6,2482.2,0.832]
[1750919134125,0.2008,2482.6,2482.4,6.561]
[1750919149736,0.12582285,2482.5,2482.4,6.561]
[1750919153550,0.12582285,2482.5,2482.4,11.37275965]
[1750919153723,0.12582285,2482.5,2482.4,11.57355965]
[1750919154122,7.80339056,2483.3,2482.7,4.02781336]
[1750919154449,0.32660915,2483.2,2482.6,4.02794992]
[1750919154644,0.12580915,2483.1,2482.8,0.2008]
[1750919154835,0.12580915,2483.0,2482.8,0.2008]
[1750919155040,0.12580915,2482.9,2482.8,0.2008]
[1750919159144,0.12581004,2482.9,2482.8,0.2008]
[1750919161821,0.12581004,2482.9,2482.8,6.7558]
[1750919162028,0.7997,2483.6,2482.9,4.85695538]
[1750919162210,0.32660089,2483.5,2483.0,4.02729992]
[1750919162413,0.12580089,2483.4,2483.1,0.2008]
[1750919162732,0.12580089,2483.3,2483.1,0.2008]
[1750919162932,0.12580089,2483.2,2483.1,0.2008]
[1750919163134,0.2008,2483.5,2483.1,0.2008]
[1750919163459,0.12578271,2483.4,2483.1,0.2008]
[1750919163647,0.12578271,2483.3,2482.9,0.8295]
[1750919163815,0.7997,2483.6,2483.3,0.2008]
[1750919164015,0.12578261,2483.5,2483.3,0.2008]
[1750919164247,0.12578261,2483.4,2483.3,0.2008]
[1750919165116,0.7997,2483.6,2483.3,0.2008]
[1750919165329,0.12577752,2483.5,2483.3,0.2008]
[1750919165524,0.7997,2483.6,2483.3,0.2008]
[1750919165726,0.12577737,2483.5,2483.3,0.2008]
[1750919165930,0.12578156,2483.4,2482.9,0.8295]
[1750919166140,0.2008,2483.5,2483.1,0.2008]
[1750919166315,0.1257836,2483.4,2483.1,0.2008]
[1750919166640,0.2008,2483.5,2483.1,0.2008]
[1750919166845,0.12578364,2483.4,2483.1,0.2008]
[1750919167049,0.2008,2483.5,2483.1,0.2008]
[1750919167341,0.12578154,2483.4,2483.1,0.2008]
[1750919167525,0.2008,2483.5,2483.1,0.2008]
[1750919168126,0.7997,2483.6,2483.0,4.027262]
[1750919168349,0.7997,2483.6,2483.2,0.2008]
[1750919168550,0.2008,2483.7,2483.2,0.2008]
[1750919169124,0.2008,2483.7,2483.2,0.9719]
[1750919169324,0.8237,2483.8,2483.4,0.2008]
[1750919170847,7.82729056,2483.8,2483.4,0.2008]
[1750919174535,0.2008,2483.9,2483.4,0.2008]
[1750919174720,0.2008,2483.9,2483.5,0.7715]
[1750919175425,0.761,2484.2,2483.5,3.99272542]
[1750919175621,0.2008,2484.0,2483.6,0.2008]
[1750919176544,0.2008,2484.0,2483.6,3.42190475]
[1750919176724,0.2008,2484.0,2483.6,0.2008]
[1750919178353,7.00359056,2483.7,2483.6,0.2008]
[1750919178540,0.7554,2483.9,2483.6,0.2008]
[1750919179121,7.00359056,2483.7,2483.3,0.7869]
[1750919179337,7.00359056,2483.7,2483.3,0.2008]
[1750919180121,0.7987,2483.3,2482.7,9.0276]
[1750919180353,0.7987,2483.3,2482.9,0.2008]
[1750919181139,7.20439056,2483.4,2482.9,0.2008]
[1750919181822,7.00359056,2483.1,2482.9,0.2008]
[1750919182152,7.20439056,2483.1,2482.7,0.2008]
[1750919182726,7.00359056,2482.8,2482.3,11.20596717]
[1750919182926,7.00359056,2482.8,2482.4,0.2008]
[1750919183641,7.00359056,2482.8,2482.3,1.20596717]
[1750919183842,7.20439056,2482.8,2482.3,1.40676717]
[1750919186461,7.20439056,2482.8,2482.3,4.6295454]
[1750919186952,7.20439056,2482.8,2482.3,1.40676717]
[1750919188763,0.2008,2482.8,2482.3,4.62955758]
[1750919189365,0.2008,2482.8,2482.4,3.2226162]
[1750919189561,0.2008,2482.8,2482.3,1.40676717]
[1750919189947,0.2008,2482.8,2482.3,4.62957073]
[1750919192075,0.2008,2482.8,2482.3,0.2008]
[1750919192377,0.32661399,2482.8,2482.3,0.2008]
[1750919192963,7.82179056,2482.7,2482.3,0.2008]
[1750919193165,7.00359056,2482.4,2482.1,0.2008]
[1750919196680,0.2008,2482.2,2481.8,0.2008]
[1750919197554,7.00359056,2482.1,2481.8,0.2008]
[1750919197878,0.2008,2481.9,2481.5,0.50487813]
[1750919198583,0.2008,2481.9,2481.5,0.2008]
[1750919200183,1.16979906,2481.9,2481.5,0.2008]
[1750919201954,0.96899906,2481.9,2481.5,0.2008]
[1750919202161,0.2008,2481.8,2481.3,0.2008]
[1750919203068,0.8288,2481.7,2481.3,0.2008]
[1750919205689,0.2008,2481.5,2481.0,0.2008]
[1750919205894,0.8094,2481.4,2481.0,0.2008]
[1750919206390,0.8094,2481.4,2481.0,3.42529554]
[1750919207697,0.8094,2481.4,2481.0,0.2008]
[1750919211563,1.77997906,2481.4,2480.8,0.2008]
[1750919211874,0.2008,2481.3,2480.8,0.2008]
[1750919212276,0.2008,2481.3,2480.9,3.22460887]
[1750919212483,0.2008,2481.3,2480.8,3.42550222]
[1750919214000,0.2008,2481.3,2480.8,0.2008]
[1750919216096,0.2008,2481.3,2480.8,3.42549755]
[1750919220306,0.2008,2481.3,2480.8,0.2008]
[1750919220486,0.7776,2481.2,2480.8,0.2008]
[1750919221398,7.00359056,2481.1,2480.8,0.2008]
[1750919221576,0.9997,2481.0,2480.5,0.2008]
[1750919222103,0.95631318,2480.9,2480.2,3.22550041]
[1750919222407,0.2008,2480.7,2480.3,0.2008]
[1750919222716,0.7962,2480.6,2480.3,0.2008]
[1750919223017,0.12592933,2480.6,2480.3,0.2008]
[1750919223308,0.2008,2480.9,2480.5,3.22509171]
[1750919224027,0.7962,2481.0,2480.3,0.55]
[1750919224179,0.997,2481.2,2480.8,3.22475587]
[1750919224522,0.12589667,2481.1,2480.8,3.22475587]
[1750919224720,0.997,2481.2,2480.9,3.22458357]
[1750919224893,0.12589511,2481.1,2480.9,3.22458357]
[1750919225077,0.997,2481.2,2480.9,3.22458357]
[1750919225276,0.12589387,2481.1,2480.9,3.22458357]
[1750919225485,0.997,2481.2,2480.9,3.22458357]
[1750919225809,0.997,2481.2,2480.9,3.22452109]
[1750919226311,0.7962,2481.2,2480.9,3.22458125]
[1750919226501,0.7962,2481.2,2480.9,3.42538125]
[1750919226502,0.12588853,2481.1,2480.9,3.42538125]
[1750919226701,0.7962,2481.2,2480.9,3.42538125]
[1750919226905,0.12589148,2481.1,2480.9,3.42538125]
[1750919227088,0.7962,2481.2,2480.9,3.42538125]
[1750919227303,0.12589051,2481.1,2480.9,3.42538125]
[1750919227505,0.7962,2481.2,2480.9,3.42538125]
[1750919227708,0.1258911,2481.1,2480.9,3.42538125]
[1750919227929,0.7962,2481.2,2480.9,3.42538125]
[1750919228095,0.12589113,2481.1,2480.9,3.42538125]
[1750919228294,0.7962,2481.2,2480.9,3.42538125]
[1750919228623,0.12589124,2481.1,2480.9,0.2008]
[1750919228829,0.12589124,2481.0,2480.9,0.2008]
[1750919229415,0.12589124,2481.0,2480.7,0.2008]
[1750919229726,0.12589124,2480.9,2480.7,0.2008]
[1750919229925,0.997,2481.2,2480.7,3.42569088]
[1750919230222,0.12590141,2481.1,2480.7,0.2008]
[1750919230433,0.12590141,2481.0,2480.6,3.22496945]
[1750919230598,0.12590141,2480.9,2480.6,3.42576945]
[1750919230797,0.2008,2481.0,2480.6,3.42576945]
[1750919231130,0.12590225,2480.9,2480.6,3.42576945]
[1750919231334,0.2008,2481.0,2480.6,3.42576945]
[1750919231628,0.1259022,2480.9,2480.6,3.42576945]